[Event "*** Titled Tuesday Blitz"]
[Site "Chess.com"]
[Date "2020.04.21"]
[Round "5"]
[White "InitiatingASC"]
[Black "manitodeplomo"]
[Result "0-1"]
[WhiteElo "2443"]
[BlackElo "2612"]
[TimeControl "180+1"]
[EndTime "10:57:41 PDT"]
[Termination "manitodeplomo won by resignation"]

1. d4 {[%clk 0:03:00.9]} 1... c5 {[%clk 0:02:57.9]} 2. c3 {[%clk 0:02:58.9]}
2... Nf6 {[%clk 0:02:52.8]} 3. Nf3 {[%clk 0:02:58.3]} 3... b6 {[%clk 0:02:50.3]}
4. Bf4 {[%clk 0:02:57]} 4... Bb7 {[%clk 0:02:50.6]} 5. e3 {[%clk 0:02:57.4]}
5... d6 {[%clk 0:02:51.1]} 6. Nbd2 {[%clk 0:02:56.4]} 6... Nbd7 {[%clk
0:02:51.6]} 7. Be2 {[%clk 0:02:49.1]} 7... a6 {[%clk 0:02:51.9]} 8. h3 {[%clk
0:02:47.3]} 8... g6 {[%clk 0:02:49]} 9. O-O {[%clk 0:02:46.9]} 9... Bg7 {[%clk
0:02:49.5]} 10. Bh2 {[%clk 0:02:47.4]} 10... O-O {[%clk 0:02:49.4]} 11. Re1
{[%clk 0:02:47.6]} 11... Qc7 {[%clk 0:02:49]} 12. a4 {[%clk 0:02:46.3]} 12...
Rfe8 {[%clk 0:02:49]} 13. Qb3 {[%clk 0:02:42.5]} 13... Bd5 {[%clk 0:02:45.4]}
14. Bc4 {[%clk 0:02:35.1]} 14... Qc6 {[%clk 0:02:39.7]} 15. Bxd5 {[%clk
0:02:08]} 15... Qxd5 {[%clk 0:02:35.4]} 16. Qxd5 {[%clk 0:01:57.4]} 16... Nxd5
{[%clk 0:02:36.3]} 17. e4 {[%clk 0:01:57.9]} 17... Nc7 {[%clk 0:02:34.3]} 18.
Nc4 {[%clk 0:01:52.8]} 18... b5 {[%clk 0:02:03.5]} 19. axb5 {[%clk 0:01:30.2]}
19... axb5 {[%clk 0:02:04.4]} 20. Ne3 {[%clk 0:01:30.2]} 20... cxd4 {[%clk
0:01:49.9]} 21. Nxd4 {[%clk 0:01:26.9]} 21... b4 {[%clk 0:01:44.1]} 22. Rec1
{[%clk 0:00:58.7]} 22... bxc3 {[%clk 0:01:38.1]} 23. bxc3 {[%clk 0:00:57.5]}
23... Nc5 {[%clk 0:01:35.3]} 24. f3 {[%clk 0:00:54.5]} 24... Bh6 {[%clk
0:01:24]} 25. Ndc2 {[%clk 0:00:44.9]} 25... Nb5 {[%clk 0:01:02.6]} 26. Kf1
{[%clk 0:00:26.5]} 26... Nxc3 {[%clk 0:00:59.8]} 27. Bg1 {[%clk 0:00:26.7]}
27... Nb3 {[%clk 0:00:34.4]} 28. Rxa8 {[%clk 0:00:25.6]} 28... Rxa8 {[%clk
0:00:35.3]} 29. Re1 {[%clk 0:00:24.5]} 29... Ra2 {[%clk 0:00:35.3]} 30. g3
{[%clk 0:00:20.5]} 30... Nd2+ {[%clk 0:00:34.4]} 31. Kg2 {[%clk 0:00:19.5]}
31... Nc4 {[%clk 0:00:33.1]} 32. Kh1 {[%clk 0:00:18.6]} 32... Nxe3 {[%clk
0:00:31]} 33. Bxe3 {[%clk 0:00:17.3]} 33... Rxc2 {[%clk 0:00:29.6]} 34. Bxh6
{[%clk 0:00:16.9]} 34... f6 {[%clk 0:00:29.9]} 35. Be3 {[%clk 0:00:16.6]} 35...
Kf7 {[%clk 0:00:29.4]} 36. Rc1 {[%clk 0:00:16.7]} 36... Rxc1+ {[%clk 0:00:26.2]}
37. Bxc1 {[%clk 0:00:17.6]} 37... f5 {[%clk 0:00:24.7]} 38. exf5 {[%clk
0:00:16.1]} 38... gxf5 {[%clk 0:00:25.6]} 39. Be3 {[%clk 0:00:16.1]} 39... e5
{[%clk 0:00:25.4]} 40. Kg2 {[%clk 0:00:16.5]} 40... Ke6 {[%clk 0:00:25.2]} 41.
Ba7 {[%clk 0:00:16.3]} 41... d5 {[%clk 0:00:24.9]} 42. Kf2 {[%clk 0:00:16.5]}
42... Nb5 {[%clk 0:00:24.2]} 43. Bc5 {[%clk 0:00:16.1]} 43... d4 {[%clk
0:00:24.3]} 44. g4 {[%clk 0:00:15]} 44... e4 {[%clk 0:00:19.6]} 45. gxf5+ {[%clk
0:00:14.3]} 45... Kxf5 {[%clk 0:00:20.5]} 46. fxe4+ {[%clk 0:00:14.8]} 46...
Kxe4 {[%clk 0:00:21.2]} 47. h4 {[%clk 0:00:14.4]} 47... h5 {[%clk 0:00:20.6]}
48. Kg3 {[%clk 0:00:13.2]} 48... Nc3 {[%clk 0:00:20.1]} 49. Bb4 {[%clk
0:00:13.3]} 49... Nd5 {[%clk 0:00:19.9]} 50. Bd2 {[%clk 0:00:12.5]} 50... Ne3
{[%clk 0:00:20.5]} 51. Kf2 {[%clk 0:00:12.1]} 51... Nf5 {[%clk 0:00:20]} 52. Bg5
{[%clk 0:00:12]} 52... Ne3 {[%clk 0:00:17.5]} 53. Bxe3 {[%clk 0:00:09.7]} 53...
dxe3+ {[%clk 0:00:17]} 54. Ke2 {[%clk 0:00:10.2]} 54... Kf4 {[%clk 0:00:16.6]}
55. Ke1 {[%clk 0:00:09.3]} 55... Kf3 {[%clk 0:00:16.5]} 56. Kf1 {[%clk
0:00:08.4]} 56... Kg3 {[%clk 0:00:15.1]} 57. Ke2 {[%clk 0:00:08.7]} 57... Kxh4
{[%clk 0:00:15.6]} 58. Kxe3 {[%clk 0:00:09.3]} 58... Kg3 {[%clk 0:00:16]} 59.
Ke2 {[%clk 0:00:09.5]} 59... Kg2 {[%clk 0:00:16.1]} 60. Ke3 {[%clk 0:00:09.4]}
60... h4 {[%clk 0:00:16.7]} 0-1

[Event "*** Titled Tuesday Blitz"]
[Site "Chess.com"]
[Date "2020.04.21"]
[Round "5"]
[White "pomeraniandog"]
[Black "Larina_Marija"]
[Result "1-0"]
[WhiteElo "1839"]
[BlackElo "2261"]
[TimeControl "180+1"]
[EndTime "10:57:42 PDT"]
[Termination "pomeraniandog won by checkmate"]

1. e4 {[%clk 0:03:00.9]} 1... d5 {[%clk 0:02:59.3]} 2. exd5 {[%clk 0:02:59.9]}
2... Qxd5 {[%clk 0:02:59.7]} 3. Nc3 {[%clk 0:03:00.3]} 3... Qa5 {[%clk
0:03:00.2]} 4. d4 {[%clk 0:03:00.3]} 4... Nf6 {[%clk 0:03:00]} 5. Nf3 {[%clk
0:03:00.6]} 5... Bf5 {[%clk 0:02:59.6]} 6. Bc4 {[%clk 0:02:59]} 6... e6 {[%clk
0:02:58.9]} 7. O-O {[%clk 0:02:49.7]} 7... Nbd7 {[%clk 0:02:54.7]} 8. Re1 {[%clk
0:02:40.9]} 8... Be7 {[%clk 0:02:54.6]} 9. Nh4 {[%clk 0:02:29.6]} 9... Bg6
{[%clk 0:02:54.1]} 10. Nxg6 {[%clk 0:02:04]} 10... hxg6 {[%clk 0:02:55]} 11. Qf3
{[%clk 0:02:02.5]} 11... c6 {[%clk 0:02:54.4]} 12. Bf4 {[%clk 0:02:00.6]} 12...
g5 {[%clk 0:02:27.7]} 13. Bg3 {[%clk 0:01:52]} 13... g4 {[%clk 0:02:27.3]} 14.
Qe2 {[%clk 0:01:43.8]} 14... Qh5 {[%clk 0:02:19.2]} 15. Ne4 {[%clk 0:01:29.2]}
15... Nxe4 {[%clk 0:02:17.1]} 16. Qxe4 {[%clk 0:01:28.4]} 16... Nf6 {[%clk
0:02:17.6]} 17. Qe2 {[%clk 0:01:23.8]} 17... O-O-O {[%clk 0:02:01.7]} 18. c3
{[%clk 0:00:28.7]} 18... Bd6 {[%clk 0:01:55.3]} 19. Bxe6+ {[%clk 0:00:19.9]}
19... Kc7 {[%clk 0:01:35.7]} 20. Bxf7 {[%clk 0:00:08.6]} 20... Qxf7 {[%clk
0:01:32.8]} 21. Bxd6+ {[%clk 0:00:08.8]} 21... Rxd6 {[%clk 0:01:31.2]} 22. Qe7+
{[%clk 0:00:08.5]} 22... Qxe7 {[%clk 0:01:31.5]} 23. Rxe7+ {[%clk 0:00:09.2]}
23... Rd7 {[%clk 0:01:31.9]} 24. Rae1 {[%clk 0:00:08.9]} 24... Rd8 {[%clk
0:01:28.6]} 25. R1e6 {[%clk 0:00:06]} 25... Rxe7 {[%clk 0:01:27.9]} 26. Rxe7+
{[%clk 0:00:06.1]} 26... Rd7 {[%clk 0:01:28.8]} 27. Rxd7+ {[%clk 0:00:05.5]}
27... Kxd7 {[%clk 0:01:29.7]} 28. f3 {[%clk 0:00:04.2]} 28... gxf3 {[%clk
0:01:29.5]} 29. gxf3 {[%clk 0:00:05.1]} 29... Kd6 {[%clk 0:01:29.7]} 30. Kg2
{[%clk 0:00:05.3]} 30... Kd5 {[%clk 0:01:29.6]} 31. Kg3 {[%clk 0:00:04.8]} 31...
b5 {[%clk 0:01:29.3]} 32. Kf4 {[%clk 0:00:03.8]} 32... a5 {[%clk 0:01:28.1]} 33.
Kg5 {[%clk 0:00:03.8]} 33... b4 {[%clk 0:01:27.7]} 34. cxb4 {[%clk 0:00:04.1]}
34... axb4 {[%clk 0:01:27.6]} 35. Kg6 {[%clk 0:00:04.5]} 35... Ne8 {[%clk
0:01:21.1]} 36. Kf7 {[%clk 0:00:04.5]} 36... Nd6+ {[%clk 0:01:20.2]} 37. Kxg7
{[%clk 0:00:05]} 37... Kxd4 {[%clk 0:01:18.5]} 38. Kf6 {[%clk 0:00:05]} 38...
Ke3 {[%clk 0:01:17.5]} 39. h4 {[%clk 0:00:05.2]} 39... c5 {[%clk 0:01:12.9]} 40.
h5 {[%clk 0:00:05.5]} 40... c4 {[%clk 0:01:10.2]} 41. h6 {[%clk 0:00:05.8]}
41... c3 {[%clk 0:01:10.5]} 42. bxc3 {[%clk 0:00:05.6]} 42... bxc3 {[%clk
0:01:10.5]} 43. h7 {[%clk 0:00:05.8]} 43... Ne8+ {[%clk 0:01:04.6]} 44. Kf7
{[%clk 0:00:05.5]} 44... Nd6+ {[%clk 0:01:00.5]} 45. Kf6 {[%clk 0:00:05.8]}
45... Ne8+ {[%clk 0:01:00.3]} 46. Kg6 {[%clk 0:00:06.2]} 46... c2 {[%clk
0:00:54.9]} 47. h8=Q {[%clk 0:00:06]} 47... Kd3 {[%clk 0:00:51]} 48. Qxe8 {[%clk
0:00:02.5]} 48... c1=Q {[%clk 0:00:51.2]} 49. Qe4+ {[%clk 0:00:02.5]} 49... Kd2
{[%clk 0:00:49]} 50. Qf4+ {[%clk 0:00:02.6]} 50... Kc2 {[%clk 0:00:49.3]} 51.
Qxc1+ {[%clk 0:00:03.5]} 51... Kxc1 {[%clk 0:00:50.2]} 52. f4 {[%clk 0:00:03.8]}
52... Kb2 {[%clk 0:00:50.1]} 53. f5 {[%clk 0:00:04.7]} 53... Kxa2 {[%clk
0:00:50.2]} 54. f6 {[%clk 0:00:05.6]} 54... Kb3 {[%clk 0:00:50.3]} 55. f7 {[%clk
0:00:06.5]} 55... Kc4 {[%clk 0:00:51]} 56. f8=Q {[%clk 0:00:07.4]} 56... Kd5
{[%clk 0:00:51.9]} 57. Qe7 {[%clk 0:00:07]} 57... Kd4 {[%clk 0:00:52.8]} 58. Qe6
{[%clk 0:00:07.2]} 58... Kd3 {[%clk 0:00:52.9]} 59. Kf5 {[%clk 0:00:07.2]} 59...
Kc3 {[%clk 0:00:53.8]} 60. Qd5 {[%clk 0:00:07.2]} 60... Kc2 {[%clk 0:00:54]} 61.
Qd4 {[%clk 0:00:07.4]} 61... Kb3 {[%clk 0:00:53.8]} 62. Qc5 {[%clk 0:00:07.5]}
62... Kb2 {[%clk 0:00:53.7]} 63. Qc4 {[%clk 0:00:07.8]} 63... Kb1 {[%clk
0:00:53.9]} 64. Qc3 {[%clk 0:00:08]} 64... Ka2 {[%clk 0:00:53.8]} 65. Qb4 {[%clk
0:00:08.3]} 65... Ka1 {[%clk 0:00:54.1]} 66. Ke4 {[%clk 0:00:08.8]} 66... Ka2
{[%clk 0:00:54.3]} 67. Kd3 {[%clk 0:00:09.7]} 67... Ka1 {[%clk 0:00:55.2]} 68.
Kc2 {[%clk 0:00:10.6]} 68... Ka2 {[%clk 0:00:56.1]} 69. Qb2# {[%clk 0:00:10.9]}
1-0

[Event "*** Titled Tuesday Blitz"]
[Site "Chess.com"]
[Date "2020.04.21"]
[Round "5"]
[White "Anton_Demchenko"]
[Black "stanyga"]
[Result "1-0"]
[WhiteElo "2845"]
[BlackElo "2711"]
[TimeControl "180+1"]
[EndTime "10:57:43 PDT"]
[Termination "Anton_Demchenko won on time"]

1. d4 {[%clk 0:03:00.9]} 1... Nf6 {[%clk 0:02:59.1]} 2. Nf3 {[%clk 0:03:01.3]}
2... g6 {[%clk 0:02:57.9]} 3. Bf4 {[%clk 0:03:01.3]} 3... Bg7 {[%clk 0:02:57.5]}
4. c3 {[%clk 0:03:01.3]} 4... O-O {[%clk 0:02:56.4]} 5. Nbd2 {[%clk 0:03:01.6]}
5... d6 {[%clk 0:02:56.6]} 6. e4 {[%clk 0:03:00.9]} 6... Nbd7 {[%clk 0:02:52.3]}
7. Be2 {[%clk 0:03:00.9]} 7... Nh5 {[%clk 0:02:44.3]} 8. Be3 {[%clk 0:02:59.8]}
8... e5 {[%clk 0:02:43.9]} 9. O-O {[%clk 0:02:56.6]} 9... Nf4 {[%clk 0:02:42.2]}
10. Bxf4 {[%clk 0:02:54.5]} 10... exf4 {[%clk 0:02:42.3]} 11. Re1 {[%clk
0:02:53.9]} 11... Re8 {[%clk 0:02:41.2]} 12. a4 {[%clk 0:02:51.3]} 12... a5
{[%clk 0:02:39.7]} 13. h3 {[%clk 0:02:41.6]} 13... Nf6 {[%clk 0:02:37.3]} 14.
Bc4 {[%clk 0:02:32.6]} 14... d5 {[%clk 0:02:00.5]} 15. exd5 {[%clk 0:02:30.7]}
15... Rxe1+ {[%clk 0:02:00.1]} 16. Qxe1 {[%clk 0:02:03.9]} 16... Bf5 {[%clk
0:01:22.8]} 17. Qd1 {[%clk 0:01:19.2]} 17... Qd7 {[%clk 0:00:38.3]} 18. Ne5
{[%clk 0:01:15.6]} 18... Qd6 {[%clk 0:00:31.6]} 19. Qb3 {[%clk 0:01:15.7]} 19...
b6 {[%clk 0:00:31.3]} 20. Re1 {[%clk 0:00:59.6]} 20... g5 {[%clk 0:00:31.1]} 21.
Bb5 {[%clk 0:00:45.9]} 21... Rd8 {[%clk 0:00:27.8]} 22. Bc6 {[%clk 0:00:39.4]}
22... Nxd5 {[%clk 0:00:24.1]} 23. Ndc4 {[%clk 0:00:39]} 23... Qe6 {[%clk
0:00:22.1]} 24. Bb5 {[%clk 0:00:24.8]} 24... f6 {[%clk 0:00:18.3]} 25. Nf3
{[%clk 0:00:24]} 25... Qf7 {[%clk 0:00:18.2]} 26. Ncd2 {[%clk 0:00:20.3]} 26...
Be6 {[%clk 0:00:17]} 27. Bc4 {[%clk 0:00:20.1]} 27... c6 {[%clk 0:00:16]} 28.
Qc2 {[%clk 0:00:14.2]} 28... h6 {[%clk 0:00:13.6]} 29. Qe4 {[%clk 0:00:13.8]}
29... Re8 {[%clk 0:00:12.1]} 30. Bd3 {[%clk 0:00:09.6]} 30... Bd7 {[%clk
0:00:10.7]} 31. Qh7+ {[%clk 0:00:08.2]} 31... Kf8 {[%clk 0:00:11.2]} 32. Rd1
{[%clk 0:00:06.1]} 32... Qg8 {[%clk 0:00:10.1]} 33. Qg6 {[%clk 0:00:05.9]} 33...
Qf7 {[%clk 0:00:10.2]} 34. Nc4 {[%clk 0:00:05.8]} 34... Qxg6 {[%clk 0:00:09.6]}
35. Bxg6 {[%clk 0:00:06.7]} 35... Re2 {[%clk 0:00:09.1]} 36. Bd3 {[%clk
0:00:06.9]} 36... Re7 {[%clk 0:00:08.1]} 37. Nfd2 {[%clk 0:00:07.3]} 37... Re6
{[%clk 0:00:07.4]} 38. Kf1 {[%clk 0:00:07]} 38... Re7 {[%clk 0:00:05.2]} 39. Nf3
{[%clk 0:00:06.4]} 39... c5 {[%clk 0:00:04.9]} 40. dxc5 {[%clk 0:00:06.3]} 40...
bxc5 {[%clk 0:00:04.8]} 41. Ra1 {[%clk 0:00:05.7]} 41... Nc7 {[%clk 0:00:04]}
42. Nxa5 {[%clk 0:00:05.3]} 42... Be6 {[%clk 0:00:03.1]} 43. Bc4 {[%clk
0:00:05.1]} 43... Bf5 {[%clk 0:00:02.7]} 44. Nc6 {[%clk 0:00:04.6]} 44... Rd7
{[%clk 0:00:02.1]} 45. a5 {[%clk 0:00:04.8]} 45... Be4 {[%clk 0:00:01.6]} 46.
Na7 {[%clk 0:00:03.1]} 1-0

[Event "*** Titled Tuesday Blitz"]
[Site "Chess.com"]
[Date "2020.04.21"]
[Round "5"]
[White "Megagigahiper3345"]
[Black "SlavenPastar"]
[Result "1-0"]
[WhiteElo "2571"]
[BlackElo "2405"]
[TimeControl "180+1"]
[EndTime "10:57:44 PDT"]
[Termination "Megagigahiper3345 won by resignation"]

1. d4 {[%clk 0:03:00.9]} 1... b6 {[%clk 0:03:00.3]} 2. e4 {[%clk 0:02:59.8]}
2... Bb7 {[%clk 0:03:00.1]} 3. Bd3 {[%clk 0:03:00.3]} 3... Nf6 {[%clk
0:03:00.7]} 4. Qe2 {[%clk 0:03:00.1]} 4... e6 {[%clk 0:03:00.7]} 5. c3 {[%clk
0:02:57.3]} 5... d5 {[%clk 0:03:00.3]} 6. e5 {[%clk 0:02:57]} 6... Ng8 {[%clk
0:03:00.5]} 7. f4 {[%clk 0:02:55.4]} 7... g6 {[%clk 0:02:59]} 8. h4 {[%clk
0:02:48.6]} 8... h5 {[%clk 0:02:56]} 9. Nf3 {[%clk 0:02:48.1]} 9... a5 {[%clk
0:02:48.2]} 10. Ng5 {[%clk 0:02:17.7]} 10... Ba6 {[%clk 0:02:43.9]} 11. Be3
{[%clk 0:02:17.2]} 11... Ne7 {[%clk 0:02:35.3]} 12. Nd2 {[%clk 0:02:14.4]} 12...
Nf5 {[%clk 0:02:29.8]} 13. Bxa6 {[%clk 0:02:14.2]} 13... Nxa6 {[%clk 0:02:16.3]}
14. Bf2 {[%clk 0:02:11.3]} 14... Nh6 {[%clk 0:02:01.4]} 15. O-O {[%clk
0:01:44.5]} 15... Qd7 {[%clk 0:01:58.7]} 16. a3 {[%clk 0:01:25.5]} 16... a4
{[%clk 0:01:41.9]} 17. c4 {[%clk 0:01:21.6]} 17... Be7 {[%clk 0:01:35.8]} 18.
Ngf3 {[%clk 0:01:08.2]} 18... Nf5 {[%clk 0:01:28.4]} 19. Rfc1 {[%clk 0:01:06.4]}
19... O-O {[%clk 0:01:18.1]} 20. cxd5 {[%clk 0:00:50.4]} 20... Qxd5 {[%clk
0:01:15.5]} 21. Qc4 {[%clk 0:00:50.7]} 21... Rfd8 {[%clk 0:01:08.7]} 22. Qxd5
{[%clk 0:00:50.4]} 22... Rxd5 {[%clk 0:01:09.6]} 23. Rc6 {[%clk 0:00:50.2]}
23... Rad8 {[%clk 0:01:01.3]} 24. Ne4 {[%clk 0:00:38.7]} 24... Kg7 {[%clk
0:00:54.4]} 25. Nc3 {[%clk 0:00:33.2]} 25... R5d7 {[%clk 0:00:49.8]} 26. Nxa4
{[%clk 0:00:31]} 26... Nxd4 {[%clk 0:00:32.6]} 27. Nxd4 {[%clk 0:00:18.2]} 27...
Rxd4 {[%clk 0:00:33.5]} 28. Bxd4 {[%clk 0:00:18.2]} 28... Rxd4 {[%clk
0:00:34.4]} 29. Nc3 {[%clk 0:00:18.3]} 29... Rxf4 {[%clk 0:00:30]} 30. g3 {[%clk
0:00:16.1]} 30... Rd4 {[%clk 0:00:23.4]} 31. Rd1 {[%clk 0:00:15.4]} 31... Bc5
{[%clk 0:00:22.6]} 32. Rxd4 {[%clk 0:00:15.1]} 32... Bxd4+ {[%clk 0:00:23.5]}
33. Kg2 {[%clk 0:00:15.8]} 33... Bxe5 {[%clk 0:00:23.9]} 34. b4 {[%clk
0:00:14.2]} 34... Nb8 {[%clk 0:00:21.2]} 35. Rc4 {[%clk 0:00:14.7]} 35... c6
{[%clk 0:00:21.1]} 36. a4 {[%clk 0:00:13.3]} 36... Bc7 {[%clk 0:00:11.2]} 37.
Ne4 {[%clk 0:00:09.8]} 37... f5 {[%clk 0:00:09.4]} 38. Nd2 {[%clk 0:00:09.6]}
38... Kf6 {[%clk 0:00:09.5]} 39. b5 {[%clk 0:00:07.6]} 39... c5 {[%clk
0:00:07.1]} 40. a5 {[%clk 0:00:08]} 40... bxa5 {[%clk 0:00:07.5]} 41. Rxc5
{[%clk 0:00:08.4]} 41... Bd6 {[%clk 0:00:07.4]} 42. Rc8 {[%clk 0:00:07.5]} 42...
a4 {[%clk 0:00:07.3]} 43. Nc4 {[%clk 0:00:06.9]} 43... a3 {[%clk 0:00:04.3]} 44.
Nxd6 {[%clk 0:00:07.2]} 44... a2 {[%clk 0:00:04]} 45. Rc1 {[%clk 0:00:07.8]}
45... Ke5 {[%clk 0:00:03.3]} 46. Nc4+ {[%clk 0:00:07.1]} 46... Kd4 {[%clk
0:00:03.8]} 47. Na5 {[%clk 0:00:04.6]} 47... e5 {[%clk 0:00:03.7]} 48. Nc6+
{[%clk 0:00:03.3]} 48... Nxc6 {[%clk 0:00:02.4]} 49. bxc6 {[%clk 0:00:04.2]}
49... a1=Q {[%clk 0:00:02.7]} 50. Rxa1 {[%clk 0:00:04.4]} 1-0

[Event "*** Titled Tuesday Blitz"]
[Site "Chess.com"]
[Date "2020.04.21"]
[Round "5"]
[White "LikeWater"]
[Black "Andreikka"]
[Result "1-0"]
[WhiteElo "2677"]
[BlackElo "2937"]
[TimeControl "180+1"]
[EndTime "10:57:45 PDT"]
[Termination "LikeWater won on time"]

1. e4 {[%clk 0:03:00.9]} 1... e5 {[%clk 0:02:59.4]} 2. Nf3 {[%clk 0:03:00.5]}
2... Nc6 {[%clk 0:02:59.1]} 3. Bc4 {[%clk 0:03:00.5]} 3... Bc5 {[%clk
0:02:58.4]} 4. c3 {[%clk 0:03:00.4]} 4... Nf6 {[%clk 0:02:58.4]} 5. d3 {[%clk
0:03:00.6]} 5... d6 {[%clk 0:02:58.3]} 6. Bb3 {[%clk 0:03:00.6]} 6... O-O {[%clk
0:02:57.7]} 7. O-O {[%clk 0:03:00.3]} 7... h6 {[%clk 0:02:57.3]} 8. h3 {[%clk
0:02:59.8]} 8... a5 {[%clk 0:02:57.5]} 9. Nbd2 {[%clk 0:02:58.9]} 9... Be6
{[%clk 0:02:56.4]} 10. Re1 {[%clk 0:02:49.5]} 10... Re8 {[%clk 0:02:52.5]} 11.
Bc2 {[%clk 0:02:46.3]} 11... d5 {[%clk 0:02:51.8]} 12. exd5 {[%clk 0:02:43.4]}
12... Bxd5 {[%clk 0:02:51.8]} 13. Ne4 {[%clk 0:02:19.8]} 13... Bf8 {[%clk
0:02:51.5]} 14. Ng3 {[%clk 0:02:13.6]} 14... g6 {[%clk 0:02:44.1]} 15. Ba4
{[%clk 0:01:53]} 15... Rb8 {[%clk 0:02:28.9]} 16. Bxc6 {[%clk 0:01:42.7]} 16...
Bxc6 {[%clk 0:02:17.3]} 17. Nxe5 {[%clk 0:01:39.8]} 17... Bd5 {[%clk 0:02:16]}
18. d4 {[%clk 0:01:36.6]} 18... b5 {[%clk 0:02:15.6]} 19. Bf4 {[%clk 0:01:33]}
19... a4 {[%clk 0:02:08.1]} 20. Qd2 {[%clk 0:01:31.8]} 20... Kh7 {[%clk
0:02:04.5]} 21. Nd3 {[%clk 0:01:21]} 21... Rxe1+ {[%clk 0:01:52.2]} 22. Qxe1
{[%clk 0:01:17.6]} 22... Rb6 {[%clk 0:01:48.8]} 23. a3 {[%clk 0:01:08.9]} 23...
Re6 {[%clk 0:01:48.2]} 24. Qd2 {[%clk 0:01:08.9]} 24... g5 {[%clk 0:01:24]} 25.
Be3 {[%clk 0:01:02.2]} 25... Ne4 {[%clk 0:00:48]} 26. Nxe4 {[%clk 0:01:00.5]}
26... Bxe4 {[%clk 0:00:48.8]} 27. Re1 {[%clk 0:00:45.7]} 27... Qd5 {[%clk
0:00:44.9]} 28. f3 {[%clk 0:00:43]} 28... Bf5 {[%clk 0:00:42.3]} 29. Bf2 {[%clk
0:00:29.8]} 29... Rxe1+ {[%clk 0:00:34]} 30. Nxe1 {[%clk 0:00:30.7]} 30... Qa2
{[%clk 0:00:33.5]} 31. Be3 {[%clk 0:00:23.9]} 31... Bd6 {[%clk 0:00:32.8]} 32.
Kf2 {[%clk 0:00:21.5]} 32... f6 {[%clk 0:00:30.9]} 33. g4 {[%clk 0:00:20.4]}
33... Bg6 {[%clk 0:00:28.8]} 34. Ng2 {[%clk 0:00:20.9]} 34... Kg7 {[%clk
0:00:26.9]} 35. h4 {[%clk 0:00:18.7]} 35... Qb1 {[%clk 0:00:22.2]} 36. Qc1
{[%clk 0:00:18.4]} 36... Qa2 {[%clk 0:00:20.6]} 37. h5 {[%clk 0:00:16.4]} 37...
Bf7 {[%clk 0:00:20.3]} 38. Qd2 {[%clk 0:00:16.4]} 38... Bd5 {[%clk 0:00:20.3]}
39. Ne1 {[%clk 0:00:15.9]} 39... Bc4 {[%clk 0:00:20.7]} 40. Ng2 {[%clk
0:00:13.4]} 40... Qb1 {[%clk 0:00:18.1]} 41. Ne1 {[%clk 0:00:11.7]} 41... f5
{[%clk 0:00:13.7]} 42. gxf5 {[%clk 0:00:10.1]} 42... Qxf5 {[%clk 0:00:13.5]} 43.
d5 {[%clk 0:00:04.8]} 43... Qh3 {[%clk 0:00:13.8]} 44. Qd4+ {[%clk 0:00:04]}
44... Kf7 {[%clk 0:00:14.4]} 45. f4 {[%clk 0:00:03.8]} 45... Qh2+ {[%clk
0:00:12.2]} 46. Ng2 {[%clk 0:00:03.5]} 46... g4 {[%clk 0:00:12.1]} 47. Qe4
{[%clk 0:00:01.9]} 47... Qg3+ {[%clk 0:00:06.3]} 48. Kxg3 {[%clk 0:00:02]} 1-0

[Event "*** Titled Tuesday Blitz"]
[Site "Chess.com"]
[Date "2020.04.21"]
[Round "5"]
[White "Artem_Sadovsky"]
[Black "GHANDEEVAM2003"]
[Result "0-1"]
[WhiteElo "2552"]
[BlackElo "2883"]
[TimeControl "180+1"]
[EndTime "10:57:45 PDT"]
[Termination "GHANDEEVAM2003 won on time"]

1. Nf3 {[%clk 0:02:59.6]} 1... d6 {[%clk 0:02:59.3]} 2. g3 {[%clk 0:02:58.4]}
2... e5 {[%clk 0:02:59.2]} 3. Bg2 {[%clk 0:02:57.2]} 3... f5 {[%clk 0:02:56.9]}
4. O-O {[%clk 0:02:56.9]} 4... Nf6 {[%clk 0:02:57]} 5. d4 {[%clk 0:02:55.4]}
5... e4 {[%clk 0:02:54.5]} 6. Ne1 {[%clk 0:02:55.4]} 6... d5 {[%clk 0:02:53]} 7.
c4 {[%clk 0:02:54.6]} 7... c6 {[%clk 0:02:51.3]} 8. cxd5 {[%clk 0:02:41.3]} 8...
cxd5 {[%clk 0:02:51]} 9. Nc3 {[%clk 0:02:42.2]} 9... Be7 {[%clk 0:02:42.7]} 10.
Nc2 {[%clk 0:02:39.6]} 10... O-O {[%clk 0:02:37.1]} 11. Bf4 {[%clk 0:02:35.9]}
11... Nc6 {[%clk 0:02:34.6]} 12. Rc1 {[%clk 0:02:21.8]} 12... Be6 {[%clk
0:02:29]} 13. h4 {[%clk 0:02:10.3]} 13... Nh5 {[%clk 0:02:21.7]} 14. e3 {[%clk
0:02:03.6]} 14... Qe8 {[%clk 0:02:03.3]} 15. Nb5 {[%clk 0:01:59.5]} 15... Nxf4
{[%clk 0:01:49.5]} 16. exf4 {[%clk 0:01:54.4]} 16... Qd8 {[%clk 0:01:49.8]} 17.
Ne3 {[%clk 0:01:49.1]} 17... Qb6 {[%clk 0:01:46]} 18. Qb3 {[%clk 0:01:41.5]}
18... Rad8 {[%clk 0:01:26]} 19. Rfd1 {[%clk 0:01:40.9]} 19... a6 {[%clk
0:01:22.4]} 20. Nc3 {[%clk 0:01:40.1]} 20... Qxb3 {[%clk 0:01:23]} 21. axb3
{[%clk 0:01:41]} 21... Na5 {[%clk 0:01:23.9]} 22. Bf1 {[%clk 0:01:32.7]} 22...
Nxb3 {[%clk 0:01:22.6]} 23. Ncxd5 {[%clk 0:01:25.9]} 23... Nxc1 {[%clk
0:01:02.2]} 24. Nxe7+ {[%clk 0:01:25.1]} 24... Kf7 {[%clk 0:01:02.7]} 25. N7xf5
{[%clk 0:01:19]} 25... Nd3 {[%clk 0:00:57.8]} 26. Bxd3 {[%clk 0:01:12.9]} 26...
exd3 {[%clk 0:00:58.7]} 27. Rxd3 {[%clk 0:01:13.8]} 27... Kf6 {[%clk 0:00:50.1]}
28. g4 {[%clk 0:01:08]} 28... g6 {[%clk 0:00:49.2]} 29. Ng3 {[%clk 0:00:49]}
29... Kg7 {[%clk 0:00:42.9]} 30. f5 {[%clk 0:00:47.7]} 30... Bd7 {[%clk
0:00:40.1]} 31. d5 {[%clk 0:00:44.6]} 31... Rc8 {[%clk 0:00:39]} 32. h5 {[%clk
0:00:32.3]} 32... Rc5 {[%clk 0:00:33.5]} 33. hxg6 {[%clk 0:00:31.3]} 33... hxg6
{[%clk 0:00:34.4]} 34. Kg2 {[%clk 0:00:29.3]} 34... gxf5 {[%clk 0:00:26.7]} 35.
Ngxf5+ {[%clk 0:00:28.9]} 35... Kg6 {[%clk 0:00:25.9]} 36. Kg3 {[%clk
0:00:27.9]} 36... Rb5 {[%clk 0:00:23.4]} 37. b3 {[%clk 0:00:18.6]} 37... Rb4
{[%clk 0:00:23.9]} 38. Nd4 {[%clk 0:00:16.8]} 38... a5 {[%clk 0:00:19.7]} 39.
Nc4 {[%clk 0:00:15.4]} 39... Bb5 {[%clk 0:00:11.8]} 40. Ne5+ {[%clk 0:00:14.5]}
40... Kf6 {[%clk 0:00:11.5]} 41. Nxb5 {[%clk 0:00:10.6]} 41... Kxe5 {[%clk
0:00:12]} 42. Nd4 {[%clk 0:00:07.2]} 42... Rxd4 {[%clk 0:00:11.5]} 43. Rxd4
{[%clk 0:00:05.1]} 43... Kxd4 {[%clk 0:00:12.4]} 44. d6 {[%clk 0:00:05.3]} 44...
b5 {[%clk 0:00:12.3]} 45. g5 {[%clk 0:00:04.1]} 45... a4 {[%clk 0:00:13.2]} 46.
bxa4 {[%clk 0:00:03.8]} 46... bxa4 {[%clk 0:00:14.1]} 47. f4 {[%clk 0:00:04.5]}
47... a3 {[%clk 0:00:15]} 48. Kg4 {[%clk 0:00:05.4]} 48... a2 {[%clk 0:00:15.4]}
49. g6 {[%clk 0:00:05.8]} 49... a1=Q {[%clk 0:00:16.3]} 50. Kg5 {[%clk
0:00:05.9]} 50... Qg1+ {[%clk 0:00:16.3]} 0-1